fUSD/lending_fUSD_20260413
["ID","MTS","AMOUNT","RATE_DAILY","PERIOD"]
[420393549,1776077433555,-500.0,0.00023566,2]
[420393550,1776077433564,-151.0,0.00023566,2]
[420393551,1776077433574,-151.0,0.00023621,2]
[420393552,1776077433582,-151.0,0.00023676,2]
[420393553,1776077433591,-590.0,0.00023726,2]
[420393554,1776077433600,-200.0,0.00023729,2]
[420393555,1776077433609,-181.08010149,0.00023729,2]
[420393556,1776077433619,-151.0,0.00023731,2]
[420393557,1776077433628,-42683.6036,0.00023886,2]
[420393558,1776077433638,-305.14107946,0.00023886,2]
[420393559,1776077433647,-552.44821824,0.00023887,2]
[420393560,1776077433656,-1033.6002504,0.00023887,2]
[420393561,1776077433666,-500.0,0.00023887,2]
[420393562,1776077433675,-161.22865865,0.00023929,2]
[420393563,1776077433689,-500.0,0.00023973,2]
[420393564,1776077433700,-500.0,0.00023973,2]
[420393565,1776077433709,-500.0,0.00023985,2]
[420393566,1776077433724,-535.14652634,0.00023985,2]
[420393567,1776077433734,-500.0,0.00023985,2]
[420393568,1776077433745,-500.0,0.00023985,2]
[420393569,1776077433756,-500.0,0.00023985,2]
[420393570,1776077433768,-500.0,0.00023985,2]
[420393571,1776077433782,-500.0,0.00023985,2]
[420393572,1776077433792,-500.0,0.00023985,2]
[420393573,1776077433803,-500.0,0.00023985,2]
[420393574,1776077433813,-500.0,0.00023985,2]
[420393575,1776077433825,-500.0,0.00023985,2]
[420393576,1776077433835,-500.0,0.00023985,2]
[420393577,1776077433847,-500.0,0.00023985,2]
[420393578,1776077433859,-500.0,0.00023985,2]
[420393579,1776077433881,-500.0,0.00023985,2]
[420393580,1776077433890,-500.0,0.00023985,2]
[420393581,1776077433899,-500.0,0.00023985,2]
[420393582,1776077433913,-500.0,0.00023985,2]
[420393583,1776077433930,-500.0,0.00023985,2]
[420393584,1776077433960,-500.0,0.00023985,2]
[420393585,1776077433972,-367.83795753,0.00023985,2]
[420393586,1776077433991,-500.0,0.00023985,2]
[420393587,1776077434003,-500.0,0.00023985,2]
[420393588,1776077434015,-500.0,0.00023985,2]
[420393589,1776077434026,-500.0,0.00023985,2]
[420393590,1776077434048,-500.0,0.00023985,2]
[420393591,1776077434060,-500.0,0.00023985,2]
[420393592,1776077434074,-500.0,0.00023985,2]
[420393593,1776077434094,-345.45314271,0.00023985,2]
[420393594,1776077434106,-500.0,0.00023985,2]
[420393595,1776077434120,-500.0,0.00023985,2]
[420393596,1776077434137,-500.0,0.00023985,2]
[420393597,1776077434150,-500.0,0.00023985,2]
[420393598,1776077434163,-500.0,0.00023985,2]
[420393599,1776077434175,-500.0,0.00023985,2]
[420393600,1776077434190,-500.0,0.00023985,2]
[420393601,1776077434204,-500.0,0.00023985,2]
[420393602,1776077434220,-500.0,0.00023985,2]
[420393603,1776077434230,-500.0,0.00023985,2]
[420393604,1776077434239,-500.0,0.00023985,2]
[420393605,1776077434251,-500.0,0.00023985,2]
[420393606,1776077434266,-500.0,0.00023985,2]
[420393607,1776077434288,-500.0,0.00023985,2]
[420393608,1776077434297,-500.0,0.00023985,2]
[420393609,1776077434319,-500.0,0.00023985,2]
[420393610,1776077434332,-500.0,0.00023985,2]
[420393611,1776077434342,-500.0,0.00023985,2]
[420393612,1776077434362,-500.0,0.00023985,2]
[420393613,1776077434375,-500.0,0.00023985,2]
[420393614,1776077434384,-500.0,0.00023985,2]
[420393615,1776077434402,-500.0,0.00023985,2]
[420393616,1776077434411,-500.0,0.00023985,2]
[420393617,1776077434423,-499.99999999,0.00023985,2]
[420393618,1776077434439,-500.0,0.00023985,2]
[420393619,1776077434451,-500.0,0.00023985,2]
[420393620,1776077434468,-500.0,0.00023985,2]
[420393621,1776077434479,-500.0,0.00023985,2]
[420393622,1776077434499,-500.0,0.00023985,2]
[420393623,1776077434513,-500.0,0.00023985,2]
[420393624,1776077434523,-500.0,0.00023985,2]
[420393625,1776077434546,-500.0,0.00023985,2]
[420393626,1776077434561,-500.0,0.00023985,2]
[420393627,1776077434575,-500.0,0.00023985,2]
[420393628,1776077434599,-500.0,0.00023985,2]
[420393629,1776077434608,-500.0,0.00023985,2]
[420393630,1776077434642,-500.0,0.00023985,2]
[420393631,1776077434653,-650.0,0.00023985,2]
[420393632,1776077434662,-500.0,0.00023985,2]
[420393633,1776077434674,-500.0,0.00023985,2]
[420393634,1776077434684,-500.0,0.00023985,2]
[420393635,1776077434693,-500.0,0.00023985,2]
[420393636,1776077434702,-500.0,0.00023985,2]
[420393637,1776077434715,-500.0,0.00023985,2]
[420393638,1776077434724,-500.0,0.00023985,2]
[420393639,1776077434733,-500.0,0.00023985,2]
[420393640,1776077434742,-188.0762607,0.00023985,2]
[420393641,1776077434751,-500.0,0.00023985,2]
[420393642,1776077434764,-500.0,0.00023985,2]
[420393643,1776077434773,-500.0,0.00023985,2]
[420393644,1776077434782,-281.63187371,0.00023985,2]
[420393645,1776077434798,-500.0,0.00023985,2]
[420393646,1776077434807,-500.0,0.00023985,2]
[420393647,1776077434816,-500.0,0.00023985,2]
[420393648,1776077434825,-500.0,0.00023985,2]
[420393649,1776077434842,-500.0,0.00023985,2]
[420393650,1776077434851,-500.0,0.00023985,2]
[420393651,1776077434860,-500.0,0.00023985,2]
[420393652,1776077434876,-500.0,0.00023985,2]
[420393653,1776077434886,-500.0,0.00023985,2]
[420393654,1776077434895,-500.0,0.00023985,2]
[420393655,1776077434905,-500.0,0.00023985,2]
[420393656,1776077434925,-500.0,0.00023985,2]
[420393657,1776077434935,-500.0,0.00023985,2]
[420393658,1776077434944,-363.26374741,0.00023985,2]
[420393659,1776077434970,-500.0,0.00023985,2]
[420393660,1776077434980,-535.14652634,0.00023985,2]
[420393661,1776077434989,-500.0,0.00023985,2]
[420393662,1776077435028,-535.14652634,0.00023985,2]
[420393663,1776077435119,-500.0,0.00023985,2]
[420393664,1776077435130,-535.14652634,0.00023985,2]
[420393665,1776077435145,-586.30018574,0.00023986,2]
[420393666,1776077435163,-500.0,0.00023986,2]
[420393667,1776077435175,-518.03376673,0.00023986,2]
[420393668,1776077435194,-150.0,0.00023986,2]
[420393669,1776077435222,-204.835,0.00023986,5]
[420393670,1776077435236,-571.13,0.00023986,2]
[420393671,1776077435245,-2554.742,0.00023986,5]
[420393672,1776077435271,-155.335,0.00023986,2]
[420393673,1776077435282,-621444.33715499,0.00023987,2]
[420393674,1776077435314,-187269.37369826,0.00023987,2]
[420393675,1776077435332,-204562.35187741,0.00023987,2]
[420393676,1776077435353,-299256.29271168,0.00023987,2]
[420393677,1776077435367,-1254.41808677,0.00023987,2]
[420393678,1776077435469,-534.06656813,0.00023987,2]
[420393679,1776077435592,-266.38014877,0.00023987,2]
[420393680,1776077435607,-1879.87546922,0.00023987,2]
[420393684,1776077441303,-500.0,0.00023986,2]
[420393685,1776077441314,-283.09404401,0.00023986,2]
[420393686,1776077441334,-233.98268326,0.00023986,2]
[420393687,1776077441344,-500.0,0.00023986,2]
[420393688,1776077441353,-102.92327273,0.00023987,2]
[420393689,1776077441366,-183429.98101204,0.00023987,2]
[420393690,1776077441383,-151.0,0.00023987,2]
[420393691,1776077441393,-151.0,0.00023987,2]
[420393692,1776077441403,-151.0,0.00023987,2]
[420393693,1776077441420,-151.0,0.00023987,2]
[420393694,1776077441430,-17547.11343517,0.00023987,2]
[420393695,1776077441442,-151.0,0.00024084,7]
[420393696,1776077441463,-487.0,0.00024087,2]
[420393697,1776077441472,-617.03,0.00024087,2]
[420393698,1776077441486,-164.361538,0.00024087,2]
[420393699,1776077441501,-164.361538,0.00024087,2]
[420393700,1776077441514,-164.361538,0.00024087,2]
[420393701,1776077441529,-164.361538,0.00024087,2]
[420393702,1776077441556,-151.0,0.00024087,2]
[420393703,1776077441568,-151.0,0.00024087,2]
[420393704,1776077441578,-151.0,0.00024087,2]
[420393705,1776077441611,-151.0,0.00024087,2]
[420393706,1776077441620,-151.0,0.00024087,2]
[420393707,1776077441631,-175.423455,0.00024087,2]
[420393708,1776077441669,-151.0,0.00024087,2]
[420393710,1776077441678,-151.0,0.00024087,2]
[420393712,1776077441691,-151.0,0.00024087,2]
[420393713,1776077441707,-210.185588,0.00024087,2]
[420393715,1776077441716,-210.417137,0.00024087,2]
[420393717,1776077441726,-210.417137,0.00024087,2]
[420393719,1776077441748,-210.417137,0.00024087,2]
[420393721,1776077441761,-210.417137,0.00024087,2]
[420393723,1776077441787,-151.0,0.00024087,2]
[420393725,1776077441796,-164.0091,0.000241,2]
[420393728,1776077441821,-29587.58,0.00024157,30]
[420393730,1776077441836,-247.62,0.00024174,2]
[420393731,1776077441847,-571.13,0.0002426,2]
[420393734,1776077441867,-500.0,0.00024273,2]
[420393736,1776077441887,-201.55934797,0.00024277,2]
[420393737,1776077441922,-187.78006525,0.00024277,2]
[420393739,1776077441965,-14740.1232626,0.00024287,2]
[420393741,1776077442023,-228.0631486,0.00024287,2]
[420393743,1776077442055,-1045.7780702,0.00024287,2]
[420393746,1776077442065,-7533.8626167,0.00024287,2]
[420393747,1776077442090,-964.9035727,0.00024287,2]
[420393749,1776077442122,-552.44821821,0.00024333,2]
[420393751,1776077442150,-1033.60025032,0.00024333,2]
[420393753,1776077442186,-166.66,0.00024338,30]
[420393755,1776077442219,-232.2,0.0002437,2]
[420393757,1776077442246,-184.24,0.00024381,2]
[420393759,1776077442255,-571.13,0.00024534,2]
[420393761,1776077442264,-375.22,0.00024554,2]
[420393763,1776077442283,-164.361538,0.00024603,2]
[420393765,1776077442302,-164.361538,0.00024603,2]
[420393767,1776077442311,-164.361538,0.00024603,2]
[420393768,1776077442326,-164.361538,0.00024603,2]
[420393770,1776077442337,-151.0,0.00024603,2]
[420393772,1776077442346,-2132.0,0.0002463,2]
[420393774,1776077442360,-1000.0,0.00024658,2]
[420393776,1776077442372,-153.36790571,0.00024661,2]
[420393778,1776077442381,-1013.0,0.000247,2]
[420393780,1776077442395,-552.44821821,0.00024779,2]
[420393782,1776077442408,-1033.60025032,0.00024779,2]
[420393784,1776077442436,-212.731038,0.00024802,14]
[420393786,1776077442446,-571.13,0.00024808,2]
[420393788,1776077442476,-250.0,0.00024815,2]
[420393790,1776077442486,-250.0,0.00024815,2]
[420393792,1776077442495,-371.3,0.00024819,2]
[420393794,1776077442510,-828.04,0.00024819,2]
[420393796,1776077442530,-1644.24,0.00024819,2]
[420393798,1776077442552,-161.45831757,0.00024825,2]
[420393800,1776077442564,-166.66,0.00024829,30]
[420393802,1776077442574,-151.0,0.00024856,2]
[420393804,1776077442595,-179.3267,0.000249,2]
[420393807,1776077442623,-151.0,0.000249,2]
[420393809,1776077442652,-151.0,0.000249,2]
[420393810,1776077442662,-1000.0,0.00025037,7]
[420393812,1776077442687,-571.13,0.00025082,2]
[420393814,1776077442697,-151.0,0.000251,2]
[420393817,1776077442717,-151.0,0.000251,2]
[420393819,1776077442730,-22529.0,0.000251,2]
[420393820,1776077442740,-168.0,0.0002513,2]
[420393822,1776077442760,-184.24,0.00025167,2]
[420393824,1776077442776,-552.44821821,0.00025225,2]
[420393826,1776077442786,-1033.60025032,0.00025225,2]
[420393828,1776077442795,-153.09820081,0.00025277,2]
[420393830,1776077442810,-2526.21515666,0.00025288,2]
[420393832,1776077442822,-154.86476089,0.00025308,2]
[420393834,1776077442832,-150.0,0.00025308,2]
[420393836,1776077442844,-150.0,0.00025308,2]
[420393838,1776077442859,-421.0,0.00025308,2]
[420393841,1776077442869,-150.0,0.00025308,2]
[420393842,1776077442885,-421.0,0.00025308,2]
[420393844,1776077442895,-153.49144431,0.00025308,2]
[420393846,1776077442905,-239.74746028,0.00025308,2]
[420393848,1776077442914,-421.0,0.00025308,2]
[420393851,1776077442931,-421.0,0.00025308,2]
[420393853,1776077442941,-159.10883896,0.00025308,2]
[420393855,1776077442951,-421.0,0.00025308,2]
[420393856,1776077442967,-421.0,0.00025308,2]
[420393859,1776077442979,-250.0,0.00025308,2]
[420393860,1776077442988,-421.0,0.00025308,2]
[420393862,1776077443003,-250.0,0.00025308,2]
[420393864,1776077443012,-421.0,0.00025308,2]
[420393866,1776077443022,-250.0,0.00025308,2]
[420393868,1776077443036,-421.0,0.00025308,2]
[420393870,1776077443046,-256.95165616,0.00025308,2]
[420393872,1776077443055,-421.0,0.00025308,2]
[420393874,1776077443065,-421.0,0.00025308,2]
[420393876,1776077443075,-421.0,0.00025308,2]
[420393879,1776077443087,-150.0,0.00025308,2]
[420393881,1776077443097,-421.0,0.00025308,2]
[420393882,1776077443107,-150.0,0.00025308,2]
[420393884,1776077443116,-421.0,0.00025308,2]
[420393886,1776077443126,-150.0,0.00025308,2]
[420393888,1776077443136,-421.0,0.00025308,2]
[420393890,1776077443147,-150.0,0.00025308,2]
[420393892,1776077443156,-421.0,0.00025308,2]
[420393894,1776077443166,-150.0,0.00025308,2]
[420393896,1776077443175,-421.0,0.00025308,2]
[420393899,1776077443185,-150.0,0.00025308,2]
[420393902,1776077443196,-150.0,0.00025308,2]
[420393904,1776077443205,-153.8681596,0.00025308,2]
[420393906,1776077443214,-421.0,0.00025308,2]
[420393907,1776077443225,-297.95334912,0.00025308,2]
[420393908,1776077443235,-421.0,0.00025308,2]
[420393909,1776077443247,-421.0,0.00025308,2]
[420393910,1776077443257,-421.0,0.00025308,2]
[420393911,1776077443267,-421.0,0.00025308,2]
[420393912,1776077443277,-421.0,0.00025308,2]
[420393913,1776077443292,-424.85531139,0.00025308,2]
[420393914,1776077443301,-150.0,0.00025308,2]
[420393915,1776077443311,-150.0,0.00025308,2]
[420393916,1776077443330,-150.0,0.00025308,2]
[420393918,1776077443341,-150.0,0.00025308,2]
[420393919,1776077443351,-150.0,0.00025308,2]
[420393920,1776077443373,-179.41802937,0.00025308,2]
[420393922,1776077443387,-150.96776439,0.00025308,2]
[420393924,1776077443396,-150.0,0.00025308,2]
[420393925,1776077443407,-150.0,0.00025308,2]
[420393926,1776077443417,-150.0,0.00025308,2]
[420393928,1776077443432,-286.72248886,0.00025308,2]
[420393930,1776077443442,-500.0,0.00025308,2]
[420393932,1776077443452,-500.0,0.00025308,2]
[420393933,1776077443462,-500.0,0.00025308,2]
[420393936,1776077443476,-500.0,0.00025308,2]
[420393938,1776077443488,-500.0,0.00025308,2]
[420393940,1776077443500,-500.0,0.00025308,2]
[420393941,1776077443511,-500.0,0.00025308,2]
[420393942,1776077443523,-214.05077364,0.00025308,2]
[420393943,1776077443536,-505.72457062,0.00025308,2]
[420393944,1776077443545,-500.0,0.00025308,2]
[420393945,1776077443556,-500.0,0.00025308,2]
[420393946,1776077443573,-500.0,0.00025308,2]
[420393947,1776077443586,-500.0,0.00025308,2]
[420393948,1776077443599,-500.0,0.00025308,2]
[420393949,1776077443632,-318.54111176,0.00025308,2]
[420393950,1776077443642,-150.0,0.00025308,2]
[420393951,1776077443655,-500.0,0.00025308,2]
[420393952,1776077443671,-500.0,0.00025308,2]
[420393953,1776077443682,-500.0,0.00025308,2]
[420393954,1776077443692,-500.0,0.00025308,2]
[420393955,1776077443714,-500.0,0.00025308,2]
[420393956,1776077443725,-463.27285639,0.00025308,2]
[420393957,1776077443735,-151.0,0.00025308,2]
[420393958,1776077443752,-151.0,0.00025308,2]
[420393959,1776077443767,-151.0,0.00025308,2]
[420393960,1776077443777,-210.417137,0.00025308,2]
[420393961,1776077443790,-210.417137,0.00025308,2]
[420393962,1776077443815,-210.417137,0.00025308,2]
[420393963,1776077443858,-210.417137,0.00025308,2]
[420393964,1776077443903,-151.0,0.00025308,2]
[420393965,1776077443921,-166.66,0.00025321,30]
[420393966,1776077443938,-155.97,0.0002537,2]
[420393967,1776077443949,-1680.0,0.00025392,2]
[420393968,1776077443962,-5532.0,0.000254,3]
[420393969,1776077443975,-195.203401,0.00025425,14]
[420393970,1776077443990,-247.53933,0.00025425,14]
[420393971,1776077444003,-194.393291,0.00025425,14]
[420393972,1776077444031,-250.0,0.00025479,6]
[420393973,1776077444041,-270.06,0.00025479,6]
[420393974,1776077444062,-415.51178233,0.000255,2]
[420393975,1776077444072,-295.0,0.00025509,5]
[420393976,1776077444084,-304.71916809,0.00025589,2]
[420393977,1776077444094,-196.0749,0.000256,2]
[420393978,1776077444104,-582.0,0.0002562,10]
[420393979,1776077444115,-300.0,0.0002562,10]
[420393980,1776077444126,-600.0,0.0002562,2]
[420393981,1776077444141,-552.44821821,0.00025671,2]
[420393982,1776077444150,-1033.60025032,0.00025671,2]
[420393983,1776077444159,-375.22,0.00025723,2]
[420393984,1776077444179,-2000.0,0.00025726,2]
[420393986,1776077444189,-291.7912,0.00025732,2]
[420393987,1776077444203,-33814.37,0.00025733,30]
[420393989,1776077444221,-232.2,0.0002574,2]
[420393991,1776077444232,-5532.0,0.000258,5]
[420393993,1776077444242,-195.203402,0.00025807,14]
[420393994,1776077444266,-247.53933,0.00025807,14]
[420393995,1776077444276,-166.66,0.00025813,30]
[420393996,1776077444285,-161.22865865,0.00025915,2]
[420393997,1776077444297,-599.60298507,0.0002592,2]
[420393998,1776077444316,-17547.11343515,0.00025944,2]
[420393999,1776077444335,-184.24,0.00025954,2]
[420394000,1776077444356,-552.44821821,0.00026116,2]
[420394001,1776077444371,-1033.60025032,0.00026116,2]
[420394002,1776077444383,-168.0,0.00026327,2]
[420394003,1776077444405,-164.361538,0.00026333,2]
[420394004,1776077444415,-164.361538,0.00026333,2]
[420394005,1776077444427,-164.361538,0.00026333,2]
[420394006,1776077444438,-164.361538,0.00026333,2]
[420394007,1776077444464,-151.0,0.00026333,2]
[420394008,1776077444474,-622.0,0.00026333,2]
[420394009,1776077444483,-1348.0,0.00026333,2]
[420394010,1776077444501,-1047.0,0.00026333,2]
[420394011,1776077444526,-3526.0,0.00026333,2]
[420394012,1776077444535,-1264.0,0.00026333,2]
[420394013,1776077444551,-926.0,0.00026333,2]
[420394014,1776077444561,-1218.0,0.00026333,2]
[420394015,1776077444574,-2472.0,0.00026333,2]
[420394016,1776077444609,-6026.0,0.00026333,2]
[420394017,1776077444619,-155.0,0.00026385,2]
[420394019,1776077444628,-343.0,0.00026386,2]
[420394020,1776077444639,-214.3872,0.000264,2]
[420394021,1776077444654,-325.81,0.0002643,2]
[420394022,1776077444671,-611.27,0.0002643,2]
[420394023,1776077444684,-1174.45,0.0002643,2]
[420394024,1776077444697,-239.75919,0.0002649,2]
[420394025,1776077444710,-239.75919,0.0002649,2]
[420394026,1776077444720,-239.75919,0.0002649,2]
[420394027,1776077444741,-239.75919,0.0002649,2]
[420394028,1776077444771,-239.75919,0.0002649,2]
[420394029,1776077444790,-239.75919,0.0002649,2]
[420394030,1776077444812,-150.0,0.000265,14]
[420394031,1776077444823,-552.44821821,0.00026562,2]
[420394032,1776077444880,-1033.60025032,0.00026562,2]
[420394033,1776077444898,-150.0,0.000266,10]
[420394034,1776077444936,-169.39,0.00026741,2]
[420394035,1776077444952,-150.0,0.00026746,5]
[420394036,1776077444979,-342.0,0.00026771,2]
[420394037,1776077444991,-375.22,0.00026893,2]
[420394038,1776077445005,-515.91,0.00026915,2]
[420394039,1776077445036,-40148.25293389,0.00027,2]
[420394040,1776077445045,-309.78033262,0.00027,2]
[420394041,1776077445055,-1742.75291375,0.00027,2]
[420394042,1776077445067,-151.0,0.00027,2]
[420394043,1776077445083,-151.0,0.00027,2]
[420394044,1776077445093,-285.859031,0.00027,2]
[420394045,1776077445108,-151.0,0.00027,2]
[420394046,1776077445118,-151.0,0.00027,2]
[420394047,1776077445131,-151.0,0.00027,2]
[420394048,1776077445148,-151.0,0.00027,2]
[420394049,1776077445164,-151.0,0.00027,2]
[420394050,1776077445183,-552.44821821,0.00027008,2]
[420394051,1776077445193,-1033.60025032,0.00027008,2]
[420394052,1776077445205,-1574.0,0.0002704,3]
[420394053,1776077445227,-162.55,0.00027123,2]
[420394054,1776077445237,-166.0,0.00027123,2]
[420394055,1776077445249,-507.0,0.00027137,2]
[420394056,1776077445268,-165.96,0.00027143,2]
[420394057,1776077445277,-198.51322665,0.0002716,2]
[420394058,1776077445290,-342.0,0.00027163,2]
[420394059,1776077445306,-234.4098,0.000272,2]
[420394060,1776077445316,-38041.17,0.00027308,30]
[420394061,1776077445325,-162.0,0.0002736,3]
[420394062,1776077445338,-3288.9660641,0.00027368,2]
[420394063,1776077445354,-1681.0319722,0.00027368,2]
[420394064,1776077445364,-251.5,0.0002737,30]
[420394065,1776077445374,-322.2,0.0002737,30]
[420394066,1776077445391,-500.0,0.00027373,2]
[420394067,1776077445402,-210.417137,0.00027397,2]
[420394068,1776077445426,-210.417137,0.00027397,2]
[420394069,1776077445436,-210.417137,0.00027397,2]
[420394070,1776077445461,-210.417137,0.00027397,2]
[420394071,1776077445484,-180.39493212,0.00027397,2]
[420394072,1776077445500,-156.599387,0.00027397,2]
[420394073,1776077445511,-269.89487809,0.00027397,7]
[420394074,1776077445561,-189.389612,0.00027397,2]
[420394075,1776077445579,-189.389612,0.00027397,2]
[420394076,1776077445595,-189.389612,0.00027397,2]
[420394077,1776077445607,-189.389612,0.00027397,2]
[420394078,1776077445625,-189.389612,0.00027397,2]
[420394079,1776077445639,-189.389612,0.00027397,2]
[420394080,1776077445665,-189.389612,0.00027397,2]
[420394081,1776077445680,-189.389612,0.00027397,2]
[420394082,1776077445704,-189.389612,0.00027397,2]
[420394083,1776077445721,-189.389612,0.00027397,2]
[420394084,1776077445731,-189.389612,0.00027397,2]
[420394085,1776077445788,-189.389612,0.00027397,2]
[420394086,1776077445798,-1528.0,0.00027397,15]
[420394087,1776077445825,-48955.7,0.000274,7]
[420394088,1776077445840,-150.09762822,0.000274,90]
[420394089,1776077445849,-164.361538,0.000274,7]
[420394090,1776077445863,-164.361538,0.000274,7]
[420394091,1776077445888,-164.361538,0.000274,7]
[420394092,1776077445898,-164.361538,0.000274,7]
[420394093,1776077445928,-342.0,0.0002744,7]
[420394094,1776077445937,-552.44821821,0.00027454,2]
[420394095,1776077445951,-1033.60025032,0.00027454,2]
[420394096,1776077445973,-168.0,0.00027524,2]
[420394097,1776077445982,-1000.0,0.00027542,2]
[420394098,1776077445996,-458.82129275,0.00027671,30]
[420394099,1776077446016,-342.0,0.00027672,2]
[420394100,1776077446026,-171.91,0.00027674,2]
[420394101,1776077446036,-343.0,0.00027675,7]
[420394102,1776077446057,-162.0,0.0002768,3]
[420394103,1776077446068,-681.0,0.00027684,2]
[420394104,1776077446078,-153.0,0.00027722,5]
[420394105,1776077446095,-775.88696598,0.00027734,2]
[420394106,1776077446104,-1000.0,0.00027739,2]
[420394107,1776077446114,-1000.0,0.00027814,2]
[420394108,1776077446124,-168.0,0.00027847,2]
[420394109,1776077446137,-151.0,0.00027849,7]
[420394110,1776077446152,-1000.0,0.0002785,2]
[420394111,1776077446162,-151.0,0.00027891,7]
[420394112,1776077446173,-189.389612,0.00027891,7]
[420394113,1776077446183,-189.389612,0.00027891,7]
[420394114,1776077446194,-189.389612,0.00027891,7]
[420394115,1776077446208,-189.389612,0.00027891,7]
[420394116,1776077446230,-151.0,0.00027891,7]
[420394117,1776077446239,-151.0,0.00027891,7]
[420394118,1776077446250,-151.0,0.00027891,7]
[420394119,1776077446262,-151.0,0.00027891,7]
[420394120,1776077446273,-25000.0,0.00027891,7]
[420394121,1776077446282,-25000.0,0.000279,7]
[420394122,1776077446297,-25000.0,0.000279,7]
[420394123,1776077446314,-8431.54095961,0.000279,7]
[420394124,1776077446325,-25000.0,0.000279,7]
[420394125,1776077446337,-151.0,0.000279,7]
[420394126,1776077446350,-161.22865865,0.000279,2]
[420394127,1776077446363,-25000.0,0.000279,7]
[420394128,1776077446375,-992.84470787,0.000279,2]
[420394133,1776077447354,-1277.27139037,0.000279,2]
[420394134,1776077447370,-3529.88390176,0.000279,2]
[420394135,1776077447391,-164.361538,0.000279,7]
[420394136,1776077447403,-164.361538,0.000279,7]
[420394137,1776077447414,-164.361538,0.000279,7]
[420394138,1776077447432,-164.361546,0.000279,7]
[420394139,1776077447452,-552.44821821,0.000279,2]
[420394140,1776077447462,-1033.60025032,0.000279,2]
[420394141,1776077447498,-151.0,0.000279,7]
[420394142,1776077447537,-23272.43981025,0.000279,7]
[420394143,1776077447583,-189.389612,0.000279,7]
[420394144,1776077447639,-189.389612,0.000279,7]
[420394145,1776077447678,-189.389612,0.000279,7]
[420394146,1776077447708,-189.389622,0.000279,7]
[420394147,1776077447719,-151.0,0.000279,7]
[420394148,1776077447754,-210.417137,0.000279,7]
[420394149,1776077447769,-210.417137,0.000279,7]
[420394150,1776077447782,-210.417137,0.000279,7]
[420394151,1776077447804,-210.417137,0.000279,7]
[420394152,1776077447821,-210.417137,0.000279,7]
[420394153,1776077447840,-210.417137,0.000279,7]
[420394154,1776077447851,-210.417137,0.000279,7]
[420394155,1776077447892,-210.41714,0.000279,7]
[420394156,1776077447903,-17547.11343515,0.000279,2]
[420394157,1776077447942,-666.08457543,0.000279,2]
[420394158,1776077447952,-1000.0,0.00027903,2]
[420394159,1776077447963,-1000.0,0.00027921,5]
[420394160,1776077447977,-1573.0,0.00027933,3]
[420394161,1776077447988,-382.35107729,0.00027945,30]
[420394162,1776077447999,-1528.0,0.00027945,15]
[420394163,1776077448009,-1000.0,0.00027954,2]
[420394164,1776077448024,-499.56,0.00027961,2]
[420394165,1776077448035,-1000.0,0.00027978,2]
[420394166,1776077448046,-700.0,0.00027983,4]
[420394167,1776077448059,-165.96,0.00027984,2]
[420394168,1776077448070,-69316.07383383,0.00028,2]
[420394169,1776077450418,-502.0,0.00026333,2]